[Event "Croatian 1A League 2022"]
[Site "Porec"]
[Date "2022.09.28"]
[Round "5.20"]
[White "Livaic, Leon"]
[Black "Janzelj, Tim"]
[Result "1/2-1/2"]
[ECO "A80"]
[WhiteElo "2565"]
[BlackElo "2456"]
[Annotator "TA"]
[PlyCount "121"]
[EventDate "2022.09.24"]
[EventType "team-tourn"]
[EventCountry "CRO"]
[SourceTitle "playchess.com"]
[Source "ChessBase"]
[SourceQuality "1"]
[TimeControl "40/5400+30:1800+30"]

{[%evp 9,121,21,28,28,27,8,12,0,12,0,0,-17,-3,0,0,0,7,0,6,7,25,0,11,0,0,-28,-32,-24,-30,-31,-37,-36,-29,-371,-343,-356,-327,-541,-612,-512,-506,-717,-624,-606,-58,-58,-62,-54,-52,-54,-51,-63,-51,-43,-35,-167,-162,-438,-422,-507,0,0,0,0,0,0,0,0,0,0,0,0,0,0,0,0,0,0,0,0,0,0,0,0,0,0,0,0,0,0,0,0,0,0,0,0,0,0,0,0,0,0,0,0,0,0,0,0,0,-3,-3,-4,-4,-4]} 1. Nf3 {[%emt 0:00:02]} f5 {[%emt 0:00:33]} 2. d4 {[%emt 0:00:55]} Nf6 {[%emt 0:00:16]} 3. Bf4 {[%emt 0:01:14]} d6 {[%emt 0:01:39]} 4. e3 {[%emt 0:01:07]} g6 {[%emt 0:00:54]} 5. h3 {[%emt 0:00:42]} Bg7 {[%emt 0:00:19]} 6. Bc4 {[%emt 0:02:17] A80: Dutch Defence: Unusual White second moves.} e6 {[%emt 0:00:31]} 7. Nc3 {[%emt 0:01:20][%cal Og2g4]} Qe7 {[%emt 0:01:13]} 8. Qe2 {[%emt 0:05:07]} a6 {[%emt 0:04:54]} 9. a4 {[%emt 0:02:06] [#]} Nc6 $146 {[%emt 0:00:55]} ({Predecessor:} 9... b6 10. O-O-O Bb7 11. Ng5 d5 12. Bb3 h6 13. Nf3 c5 14. dxc5 bxc5 15. a5 g5 16. Bxb8 Rxb8 {1-0 (50) Savchenko,B (2573)-Temirkanov,D (2282) Chess.com INT 2020}) 10. Bh2 {[%emt 0:01:19]} O-O {[%emt 0:01:51]} 11. a5 {[%emt 0:11:42]} Kh8 {[%emt 0:00:28]} 12. O-O {[%emt 0:02:57]} e5 {[%emt 0:00:30]} 13. dxe5 {[%emt 0:00:21]} dxe5 {[%emt 0:08:37]} 14. Rfd1 {[%emt 0:01:11]} e4 {[%emt 0:10:03]} 15. Nd2 {[%emt 0:00:42]} (15. Nd4 $5 {[%cal Rd4c6]}) 15... Ne5 {[%emt 0:00:39]} 16. Bb3 {[%emt 0:01:04]} g5 {[%emt 0:07:15][%cal Bg6g5,Bg5g4][%mdl 32]} 17. f4 {[%emt 0:09:28]} exf3 $1 {[%emt 0:12:08]} 18. Nxf3 {[%emt 0:00:06]} Nxf3+ {[%emt 0:00:06]} 19. Qxf3 {[%emt 0:00:03]} g4 {[%emt 0:00:12]} 20. Qf4 {[%emt 0:07:54]} Nh5 {[%emt 0:18:54]} 21. Qxc7 {[%emt 0:06:45][%mdl 8192]} (21. Nd5 $11 Qh4 22. Qa4 (22. Qxc7 $2 g3 $19)) 21... Qxe3+ $19 {[%emt 0:00:16]} 22. Kh1 {[%emt 0:00:05] Rd3 is the strong threat.} gxh3 {[%emt 0:01:47]} 23. Rd3 $2 {[%emt 0:03:21]} (23. Bd5 f4 24. Rd3 hxg2+ 25. Bxg2) 23... hxg2+ {[%emt 0:00:48]} 24. Kxg2 {[%emt 0:00:04]} Qg5+ {[%emt 0:00:31]} 25. Kh1 {[%emt 0:00:10]} f4 {[%emt 0:00:32] And now ...Bf5 would win.} 26. Rg1 {[%emt 0:20:05]} Ng3+ $2 {[%emt 0:06:50]} ({Black should play} 26... Qh4 $19 27. Bd5 Bg4 28. Rxg4 Qxg4) 27. Bxg3 $15 {[%emt 0:00:05]} fxg3 {[%emt 0:00:01]} 28. Qxg3 {[%emt 0:00:19]} Qh6+ {[%emt 0:00:11]} 29. Qh2 {[%emt 0:00:05]} Qxh2+ {[%emt 0:00:36]} 30. Kxh2 {[%emt 0:00:06]} Bf5 {[%emt 0:00:02]} 31. Rf3 {[%emt 0:02:34]} Be5+ {[%emt 0:04:52]} 32. Kg2 {[%emt 0:01:55]} (32. Kh1 $1 $15) 32... Rad8 $19 {[%emt 0:04:11]} 33. Re1 $2 {[%emt 0:01:30]} (33. Kf1 {was necessary.}) 33... Rd2+ {[%emt 0:00:56]} 34. Kh1 {[%emt 0:00:27]} Bg7 {[%emt 0:10:32] This bishop pair is nice.} (34... Bxc3 $19 35. bxc3 {[#]} (35. Rxc3 Be4+ 36. Kg1 Rg2+ 37. Kh1 Rxc2+ 38. Kg1 Rg2+ 39. Kh1 Rxb2+ 40. Kg1 Rg2+ 41. Kh1 Re2+ 42. Kg1 Rg2+ 43. Kh1 Rc2+ 44. Kg1 Rxc3 45. Rxe4 Rxb3 46. Kh2 Rg8 47. Rh4 Rb5 48. Rh3 Rxa5 49. Rh6 Rag5 50. Kh3 a5 51. Rh4 R5g6 52. Rf4 b5 53. Re4 b4 54. Rf4 b3 55. Re4 b2 56. Rf4 b1=Q) 35... Be4 $1 {[%mdl 512]} 36. Rxe4 Rxf3) 35. Ref1 $36 {[%emt 0:07:09][%mdl 2048] White has good play. The position is equal.} Rf6 {[%emt 0:01:06] White must now prevent ...Rh6+.} 36. Rxf5 {[%emt 0:00:12]} Rh6+ {[%emt 0:00:07]} 37. Kg1 {[%emt 0:00:02][%cal Of5f8]} Rg6+ {[%emt 0:00:08]} 38. Kh1 {[%emt 0:00:01] aiming for Rh5.} Rh6+ {[%emt 0:00:05]} 39. Kg1 {[%emt 0:00:02][%cal Of5f8] Hoping for Rf8+!} Bd4+ {[%emt 0:02:25]} 40. R1f2 $1 {[%emt 0:00:00]} Rxf2 {[%emt 0:00:00]} 41. Rxf2 {[%emt 0:00:08]} Rf6 {[%emt 0:00:14][%mdl 64] [#] Pin} 42. Ne4 {[%emt 0:00:39]} Rf5 {[%emt 0:00:16][%mdl 64] Pin} 43. Kg2 {[%emt 0:01:17]} Bxf2 {[%emt 0:01:06]} 44. Nxf2 {[%emt 0:00:08]} Rxa5 {[%emt 0:00:08]} 45. Ne4 {[%emt 0:01:28]} Ra1 {[%emt 0:01:24]} 46. Bd5 {[%emt 0:01:42]} b5 {[%emt 0:00:59]} 47. b4 {[%emt 0:00:49]} a5 {[%emt 0:04:50]} 48. bxa5 {[%emt 0:00:24]} Rxa5 {[%emt 0:00:09]} 49. Kf3 {[%emt 0:01:53]} Kg7 {[%emt 0:00:39]} 50. Kf4 {[%emt 0:01:51]} b4 {[%emt 0:00:56]} 51. Bc4 {[%emt 0:01:08]} h5 {[%emt 0:00:25]} 52. Nf2 {[%emt 0:00:59]} Rc5 {[%emt 0:00:42]} 53. Bb3 {[%emt 0:00:05]} Rb5 {[%emt 0:03:45]} 54. Bc4 {[%emt 0:00:31]} Rc5 {[%emt 0:00:29]} 55. Bb3 {[%emt 0:00:07]} Kh6 {[%emt 0:00:25]} 56. Nd3 {[%emt 0:00:18][%csl LRb4,LRc5]} Rg5 {[%emt 0:00:57]} 57. Be6 {[%emt 0:00:13]} Rb5 {[%emt 0:01:17]} 58. Ke4 {[%emt 0:00:42]} Rb6 {[%emt 0:01:31]} 59. Kd5 {[%emt 0:01:06]} h4 {[%emt 0:00:38]} 60. Bh3 {[%emt 0:00:33]} b3 {[%emt 0:02:43]} 61. cxb3 {[%emt 0:00:04] Weighted Error Value: White=0.42/Black=0.21 (precise)} 1/2-1/2

[Event "Croatian 1A League 2022"]
[Site "Porec"]
[Date "2022.09.28"]
[Round "5.21"]
[White "Ivekovic, Bozidar"]
[Black "Christiansen, Johan-Sebastian"]
[Result "0-1"]
[ECO "C34"]
[WhiteElo "2407"]
[BlackElo "2583"]
[Annotator "TA"]
[PlyCount "36"]
[EventDate "2022.09.24"]
[EventType "team-tourn"]
[EventCountry "CRO"]
[SourceTitle "playchess.com"]
[Source "ChessBase"]
[SourceQuality "1"]
[TimeControl "40/5400+30:1800+30"]

{[%evp 9,36,-58,-43,-57,-45,-75,-75,-68,-73,-179,-163,-172,-171,-163,-150,-116,-145,-213,-203,-268,-279,-487,-347,-596,-565,-970,-859,-838,-760]} 1. e4 {[%emt 0:00:08]} e5 {[%emt 0:04:19]} 2. f4 {[%emt 0:00:12]} exf4 {[%emt 0:00:40]} 3. Nf3 {[%emt 0:00:06]} Nf6 {[%emt 0:00:39]} 4. e5 {[%emt 0:13:28]} Nh5 {[%emt 0:00:21]} 5. d4 {[%emt 0:00:10]} d6 {[%emt 0:00:29]} 6. Bc4 {[%emt 0:04:37] C34: King's Gambit Accepted: 3 Nf3: 3...Nf6 and 3...d6.} d5 {[%emt 0:08:50]} 7. Bb3 {[%emt 0:02:15] [#]} g5 $146 {[%emt 0:02:20]} ({Predecessor:} 7... Be7 8. O-O O-O 9. Ne1 g6 10. Bxf4 Nxf4 11. Rxf4 Bg5 12. Rf1 Be6 13. Nd2 c5 14. dxc5 {½-½ (52) Megias,E (1586)-Korning,P (1961) London 2019}) 8. Nc3 {[%emt 0:04:56] Black is better.} c6 {[%emt 0:04:25]} ({Much worse is} 8... g4 9. O-O $11) 9. g4 {[%emt 0:25:08]} (9. Ng1 $17 {might work better.} g4 10. Kf1) 9... Bxg4 $19 {[%emt 0:19:08] And now ...h6 would win.} 10. Rg1 {[%emt 0:03:22]} Qd7 {[%emt 0:01:42]} 11. h3 {[%emt 0:09:02]} Bxf3 {[%emt 0:01:13]} (11... Bxh3 12. Nxg5 Ng7 13. Bxf4 $11) 12. Qxf3 {[%emt 0:00:02]} Ng3 {[%emt 0:00:07]} 13. Rxg3 {[%emt 0:16:23]} (13. Bd2 $17) 13... fxg3 {[%emt 0:00:13][%cal Bf4g3,Bg3g2][%mdl 32]} 14. Bxg5 {[%emt 0:00:03][%cal Rb3d5]} Rg8 {[%emt 0:05:43]} ({Stronger than} 14... Qxh3 15. Nxd5 cxd5 16. Bxd5 $11) 15. Bf6 {[%emt 0:07:50] [#]} (15. Be3) 15... Na6 {[%emt 0:05:12]} ({Don't blunder} 15... g2 $2 16. Kf2 $19) 16. Nxd5 $2 {[%emt 0:04:16]} (16. O-O-O Nc7 17. Rg1) 16... cxd5 {[%emt 0:04:00] Black is clearly winning.} 17. Bxd5 {[%emt 0:00:12]} g2 {[%emt 0:04:13]} 18. Kf2 {[%emt 0:02:04]} Nb4 {[%emt 0:00:18] Weighted Error Value: White=1.26/Black=0.38} 0-1

[Event "Croatian 1A League 2022"]
[Site "Porec"]
[Date "2022.09.28"]
[Round "5.22"]
[White "Martinovic, Sasa"]
[Black "Ostovic, Matija"]
[Result "1-0"]
[ECO "D20"]
[WhiteElo "2546"]
[BlackElo "2386"]
[Annotator "TA"]
[PlyCount "87"]
[EventDate "2022.09.24"]
[EventType "team-tourn"]
[EventCountry "CRO"]
[SourceTitle "playchess.com"]
[Source "ChessBase"]
[SourceQuality "1"]
[TimeControl "40/5400+30:1800+30"]

{[%evp 10,87,39,30,30,29,32,35,43,35,29,20,24,27,17,22,50,46,43,39,73,36,34,29,39,28,79,44,37,35,36,46,38,35,35,17,16,20,44,47,51,52,67,58,68,39,66,41,122,122,195,189,197,170,301,298,252,135,336,324,642,614,884,859,847,853,817,784,906,929,952,952,1243,1200,1618,1306,4774,3633,2657,2349]} 1. d4 {[%emt 0:00:02]} d5 {[%emt 0:00:06]} 2. c4 {[%emt 0:00:04]} dxc4 {[%emt 0:00:04]} 3. e4 {[%emt 0:00:07]} e5 {[%emt 0:00:20]} 4. Nf3 {[%emt 0:00:08]} Bb4+ {[%emt 0:00:37]} 5. Nc3 {[%emt 0:00:06]} exd4 {[%emt 0:00:16]} 6. Nxd4 {[%emt 0:00:05]} Ne7 {[%emt 0:00:53] 6...Nd7 injects fresh life into this line. D20: Queen's Gambit Accepted: 3 e3 and 3 e4.} 7. a3 {[%emt 0:00:30]} Nbc6 {[%emt 0:01:19]} 8. axb4 {[%emt 0:00:16]} ({Avoid the trap} 8. Bxc4 $2 Qxd4 9. Qxd4 Nxd4 $17) 8... Qxd4 {[%emt 0:01:01] White is slightly better.} 9. Be3 {[%emt 0:00:41]} Qxd1+ {[%emt 0:05:09]} 10. Rxd1 {[%emt 0:00:04]} Nxb4 {[%emt 0:00:54]} 11. Nb5 {[%emt 0:00:16]} Na6 {[%emt 0:03:00]} 12. Bxc4 {[%emt 0:00:08] [#]} Be6 $146 {[%emt 0:03:24]} ({Predecessor:} 12... Nc6 13. f4 Be6 14. Be2 O-O 15. Kf2 f5 16. exf5 Bxf5 17. g4 Be4 18. Rhe1 Ncb4 {1-0 (52) Van Wely,L (2663)-Stevic,H (2600) Chartres 2017}) 13. Bxe6 {[%emt 0:01:43]} fxe6 {[%emt 0:00:28]} 14. Nxa7 {[%emt 0:00:07]} c6 {[%emt 0:07:55]} 15. Ke2 {[%emt 0:00:15]} Ng6 {[%emt 0:11:12]} 16. Rd2 {[%emt 0:14:11][%cal Ob2b4]} Ne5 {[%emt 0:09:34]} 17. b3 {[%emt 0:05:30][%cal Bb2b3,Bb3b4][%mdl 32] Prevents Nc4.} Nd7 {[%emt 0:10:46]} (17... Rf8 $11 {keeps the balance.}) 18. f3 {[%emt 0:20:17][%cal Ob3b4]} (18. b4 $5) 18... Nac5 {[%emt 0:15:56] [#]} 19. Rhd1 $1 {[%emt 0:05:10][%cal Ob3b4]} Rf8 {[%emt 0:10:04]} (19... Rxa7 $2 20. Bxc5 b6 21. Bxb6 $1 $18 {[%mdl 512]}) 20. b4 {[%emt 0:03:46]} Rxa7 {[%emt 0:00:38]} 21. bxc5 {[%emt 0:06:17]} Rf7 {[%emt 0:07:03]} 22. e5 {[%emt 0:05:43]} h6 {[%emt 0:01:15]} 23. f4 {[%emt 0:00:30]} Re7 {[%emt 0:01:07]} 24. Rb2 {[%emt 0:10:24]} Nb8 {[%emt 0:05:15]} 25. g4 {[%emt 0:00:16]} Na6 {[%emt 0:00:22]} 26. Ra1 {[%emt 0:02:30] White is much more active. The black rooks are badly placed.} Ra8 $1 {[%emt 0:01:30]} 27. Rab1 {[%emt 0:00:06]} Ra7 {[%emt 0:00:56]} 28. h4 {[%emt 0:00:03][%cal Bh2h4,Bh4h5][%mdl 32]} Kd8 {[%emt 0:02:21]} (28... Nc7 $14) 29. h5 $36 {[%emt 0:00:02][%mdl 2048] White is really pushing.} Kc8 {[%emt 0:00:47]} (29... Ke8 $16 30. Rb3 Nc7) 30. Ra1 $18 {[%emt 0:00:30]} Kc7 {[%emt 0:00:45]} 31. Kf3 {[%emt 0:01:54]} Rf7 {[%emt 0:00:15]} (31... Ra8 $142 32. Rab1 Kc8) 32. Kg3 {[%emt 0:04:34]} Ra8 {[%emt 0:00:32] [#]} 33. Rab1 {[%emt 0:00:07]} (33. f5 $1 $18) 33... Rb8 $2 {[%emt 0:00:39] A mistake that costs the game.} (33... Kc8 $16 {is a better defense.}) 34. f5 {[%emt 0:00:53][%cal Bf4f5,Bf5f6][%mdl 32]} Rd7 $2 {[%emt 0:00:19]} (34... exf5 35. e6 f4+ 36. Bxf4+ Rxf4 37. Kxf4 Rf8+ 38. Kg3 Nxc5) 35. f6 {[%emt 0:01:55] White is clearly winning.} b5 {[%emt 0:00:41]} 36. cxb6+ {[%emt 0:00:12]} Kb7 {[%emt 0:00:06]} 37. fxg7 {[%emt 0:00:48]} Rxg7 {[%emt 0:00:10]} 38. Bxh6 {[%emt 0:00:08]} Rh7 {[%emt 0:00:14]} 39. Be3 {[%emt 0:00:44]} Rd8 {[%emt 0:00:45]} 40. Rd2 {[%emt 0:00:00]} Rxd2 {[%emt 0:00:00]} 41. Bxd2 {[%emt 0:01:32] Strongly threatening Be3.} Nc5 {[%emt 0:00:28]} 42. Be3 {[%emt 0:01:56]} Ne4+ {[%emt 0:00:42]} 43. Kf3 {[%emt 0:02:59]} Nc3 {[%emt 0:00:14]} 44. Ra1 {[%emt 0:00:08] Weighted Error Value: White=0.09 (flawless) /Black=0.39} 1-0

[Event "Croatian 1A League 2022"]
[Site "Porec"]
[Date "2022.09.28"]
[Round "5.23"]
[White "Ivekovic, Zvonimir"]
[Black "Kurajica, Bojan"]
[Result "1-0"]
[ECO "B23"]
[WhiteElo "2380"]
[BlackElo "2488"]
[Annotator "TA"]
[PlyCount "117"]
[EventDate "2022.09.24"]
[EventType "team-tourn"]
[EventCountry "CRO"]
[SourceTitle "playchess.com"]
[Source "ChessBase"]
[SourceQuality "1"]
[TimeControl "40/5400+30:1800+30"]

{[%evp 11,117,-13,4,0,4,0,8,0,42,46,32,18,96,98,104,109,85,85,87,85,75,62,60,41,80,57,64,50,115,116,195,135,181,204,187,111,126,128,104,93,94,87,95,91,97,106,128,118,140,151,140,140,175,175,161,134,177,172,177,170,193,181,205,150,179,0,186,0,183,150,181,150,150,150,141,137,168,153,153,153,153,153,139,135,167,152,152,152,152,152,136,126,206,200,200,181,181,181,239,236,226,170,170,164,11177,7317,6334,2052]} 1. e4 {[%emt 0:00:03]} c5 {[%emt 0:00:10]} 2. Nc3 {[%emt 0:00:06]} e6 {[%emt 0:01:22]} 3. g3 {[%emt 0:00:06]} d5 {[%emt 0:03:12]} 4. Bg2 {[%emt 0:00:06]} d4 {[%emt 0:05:38]} 5. Nce2 {[%emt 0:01:27]} d3 {[%emt 0:00:32]} 6. cxd3 {[%emt 0:02:19]} Qxd3 {[%emt 0:01:17]} 7. Nf3 {[%emt 0:00:51] B23: Closed Sicilian: Lines without g3.} Nc6 {[%emt 0:04:27] Prevents Ne5.} 8. O-O {[%emt 0:02:03]} e5 {[%emt 0:19:34] [#]} 9. Nc3 $146 {[%emt 0:10:41] The position is equal.} ({Predecessor:} 9. Ne1 Qa6 10. Nc3 Nf6 11. d3 Be7 12. Bg5 Bg4 13. Qd2 Nd4 14. Nc2 Be6 15. Nxd4 cxd4 {1-0 (53) Krapivin,A (2495)-Zhadanov,N (2231) Moscow 2011}) 9... Be6 {[%emt 0:03:43]} 10. Nd5 {[%emt 0:01:48] And now Re1 would win.} Bd6 $1 {[%emt 0:03:38]} (10... Bxd5 $2 11. exd5 (11. Ne1 Bb3 $11) 11... Nd4 12. Nxe5 $18) 11. Re1 {[%emt 0:02:59]} Qb5 {[%emt 0:02:56]} (11... Bg4 $1 $11) 12. b4 $1 $16 {[%emt 0:09:54]} Nxb4 {[%emt 0:03:11]} 13. Rb1 {[%emt 0:01:00]} Qd7 {[%emt 0:07:20]} 14. d4 {[%emt 0:04:02]} exd4 {[%emt 0:02:18]} 15. Nxb4 {[%emt 0:01:34]} cxb4 {[%emt 0:00:07]} 16. Qxd4 {[%emt 0:00:23]} Be7 {[%emt 0:01:56]} 17. e5 {[%emt 0:11:54] Prevents Nf6.} (17. Qxg7 Bf6 18. Bb2 Bxg7 $17) 17... Rc8 {[%emt 0:03:35]} 18. Qxd7+ {[%emt 0:14:46]} ({Don't blunder} 18. Qxa7 $2 Bc5 19. Qa5 b6 $19) 18... Bxd7 {[%emt 0:00:16]} 19. Nd4 {[%emt 0:03:51]} Rc4 {[%emt 0:07:02]} (19... Bc5 $1 $14 20. e6 (20. Bxb7 Bxd4 21. Bxc8 Bxc8 $15) 20... fxe6 21. Nxe6 Bxe6) 20. Bb2 {[%emt 0:02:43][%mdl 1024] White has strong compensation.} b5 {[%emt 0:08:03]} (20... h5 $16) 21. Rbd1 {[%emt 0:08:04]} ({White should play} 21. Bd5 $18) 21... Bg4 {[%emt 0:02:16]} (21... h5 $16 22. e6 fxe6 23. Nxe6 Bxe6) 22. Rd2 $1 $18 {[%emt 0:00:14]} (22. Nxb5 Bxd1 23. Nd6+ Bxd6 24. exd6+ Kd7 $16) 22... a6 {[%emt 0:01:42]} 23. e6 {[%emt 0:06:19]} (23. h3 $18 Be6 24. Bb7) 23... Nf6 $16 {[%emt 0:01:05]} 24. h3 {[%emt 0:02:00]} Bxe6 {[%emt 0:00:20]} 25. Nxe6 {[%emt 0:00:06]} fxe6 {[%emt 0:00:04]} 26. Rxe6 {[%emt 0:00:34] Black must now prevent Rde2.} Kf7 {[%emt 0:02:29]} 27. Rde2 $36 {[%emt 0:00:08][%mdl 2048] White has strong initiative. White is much more active.} Bc5 {[%emt 0:05:07]} 28. Bxf6 {[%emt 0:01:36]} gxf6 {[%emt 0:01:04]} 29. Bd5 {[%emt 0:00:03]} Rc1+ {[%emt 0:00:22]} 30. Kg2 {[%emt 0:00:01] Threatens to win with Rc6+.} Kg7 {[%emt 0:00:08]} 31. Rxa6 {[%emt 0:02:20]} Rd8 {[%emt 0:00:10] [#]} 32. Bb3 {[%emt 0:00:04]} Rc3 {[%emt 0:02:21]} 33. Rc6 {[%emt 0:01:59]} Bf8 {[%emt 0:01:43]} 34. Rb6 {[%emt 0:00:27]} Rcd3 {[%emt 0:00:14]} 35. Rxb5 {[%emt 0:00:44]} Rd2 {[%emt 0:01:10]} 36. Re4 {[%emt 0:00:20] Strongly threatening Rg4+.} R2d4 {[%emt 0:01:32]} 37. Re3 {[%emt 0:01:34]} R4d7 {[%emt 0:00:53]} 38. Re4 {[%emt 0:03:04] Rg4+ is the strong threat.} Rd4 $1 {[%emt 0:00:07]} 39. Re3 {[%emt 0:00:04]} R4d7 $1 {[%emt 0:00:09]} 40. Rf3 {[%emt 0:00:00]} Rc7 {[%emt 0:00:00]} 41. Rh5 {[%emt 0:02:36]} Rd4 {[%emt 0:08:18]} 42. Rhf5 {[%emt 0:02:20]} Be7 {[%emt 0:00:34]} 43. h4 {[%emt 0:00:18]} Rc5 {[%emt 0:01:06]} 44. R5f4 {[%emt 0:03:29]} Rxf4 {[%emt 0:01:04]} 45. Rxf4 {[%emt 0:00:11][%mdl 4096] Endgame KRB-KRB} Rc7 {[%emt 0:03:27]} 46. Rg4+ {[%emt 0:00:17]} Kh6 {[%emt 0:00:12]} 47. Rg8 {[%emt 0:02:16]} f5 {[%emt 0:00:36]} 48. Ra8 {[%emt 0:03:13]} Kg7 {[%emt 0:02:37]} 49. Ra6 {[%emt 0:00:28]} f4 {[%emt 0:02:07] [#]} 50. h5 $1 {[%emt 0:00:05] aiming for h6+.} ({But not} 50. gxf4 Bxh4 51. Ra5 Kg6 $16) 50... Bg5 {[%emt 0:00:17] Prevents h6+.} 51. g4 {[%emt 0:03:26]} h6 {[%emt 0:11:29]} (51... Rd7 $16 {keeps fighting.} 52. Rb6 Rd4 53. Rb7+ Kh8) 52. Rb6 $18 {[%emt 0:02:21]} Rc3 {[%emt 0:03:35]} 53. Rb7+ {[%emt 0:00:08]} Kf6 {[%emt 0:01:27]} 54. Rxb4 {[%emt 0:01:08]} Kg7 {[%emt 0:03:08]} (54... Ke5 $142 55. a4 Rc5) 55. Rb7+ {[%emt 0:02:38]} Kf6 {[%emt 0:00:39]} 56. Rf7+ {[%emt 0:01:47]} Ke5 {[%emt 0:00:04]} 57. Rf5+ {[%emt 0:00:13]} Kd6 $2 {[%emt 0:00:19] [#]} (57... Kd4 58. Rb5 Bh4 59. Rb4+ Ke5) 58. Rxg5 $1 {[%emt 0:00:41]} hxg5 {[%emt 0:01:58]} (58... Rc1 59. Rg6+) 59. h6 {[%emt 0:00:02] Weighted Error Value: White=0.15 (very precise) /Black=0.16 (very precise)} 1-0

[Event "Croatian 1A League 2022"]
[Site "Porec"]
[Date "2022.09.28"]
[Round "5.24"]
[White "Cvitan, Ognjen"]
[Black "Zovko, Mario"]
[Result "1-0"]
[ECO "D30"]
[WhiteElo "2445"]
[BlackElo "2306"]
[Annotator "TA"]
[PlyCount "85"]
[EventDate "2022.09.24"]
[EventType "team-tourn"]
[EventCountry "CRO"]
[SourceTitle "playchess.com"]
[Source "ChessBase"]
[SourceQuality "1"]
[TimeControl "40/5400+30:1800+30"]

{[%evp 15,85,31,37,40,52,49,64,25,25,26,41,36,52,31,22,28,19,13,67,55,62,68,64,39,95,85,92,94,92,69,69,69,69,69,65,68,71,71,71,18,72,0,0,0,33,0,98,104,159,96,188,173,146,148,181,20,133,112,145,171,233,224,275,275,1414,1400,1320,1323,1028,886,1813,1637]} 1. d4 {[%emt 0:03:06]} d5 {[%emt 0:00:09]} 2. c4 {[%emt 0:00:13]} e6 {[%emt 0:00:07]} 3. Nf3 {[%emt 0:01:08]} c5 {[%emt 0:00:20]} 4. cxd5 {[%emt 0:04:07]} exd5 {[%emt 0:00:39]} 5. g3 {[%emt 0:01:00]} Nf6 {[%emt 0:00:06]} 6. Bg2 {[%emt 0:00:25]} Be7 {[%emt 0:00:05]} 7. O-O {[%emt 0:00:26]} O-O {[%emt 0:00:05]} 8. dxc5 {[%emt 0:10:54]} Bxc5 {[%emt 0:00:55]} 9. a3 {[%emt 0:00:50] D30: Queen's Gambit Declined: Systems without Nc3.} h6 {[%emt 0:00:09]} 10. Nc3 {[%emt 0:03:41]} a5 {[%emt 0:00:05]} 11. e3 {[%emt 0:06:04] White is slightly better.} Nc6 {[%emt 0:04:08]} 12. b3 {[%emt 0:07:14]} Be6 {[%emt 0:19:20]} 13. Bb2 {[%emt 0:01:32]} Qe7 {[%emt 0:03:08] [#]} 14. Nb5 $146 {[%emt 0:02:42]} ({Predecessor:} 14. Ne2 Ne4 15. Nf4 Rfd8 16. Re1 Rac8 17. Nd4 Nf6 18. Ndxe6 fxe6 19. Bh3 Rd6 20. Rc1 {½-½ (53) Horvath,J (2522)-Exler,V (2157) Aschach 2017}) 14... Rfd8 {[%emt 0:06:53]} 15. Rc1 {[%emt 0:02:52]} Ne4 {[%emt 0:09:57]} 16. Nfd4 {[%emt 0:11:03]} Rac8 {[%emt 0:09:06]} (16... Nxd4 $11 17. Nxd4 Bxa3 18. Nxe6 fxe6 19. Bxa3 Qxa3) 17. Nxe6 $14 {[%emt 0:02:54]} Qxe6 {[%emt 0:04:51]} 18. Qh5 {[%emt 0:03:03] Hoping for Bxe4.} Ne7 $1 {[%emt 0:08:45]} 19. Bd4 {[%emt 0:13:00]} Bxd4 {[%emt 0:06:47]} ({Better is} 19... b6 $14) 20. Nxd4 $16 {[%emt 0:00:16]} Qb6 {[%emt 0:12:42]} 21. Bxe4 {[%emt 0:09:21]} dxe4 {[%emt 0:00:06]} 22. Qe5 {[%emt 0:00:06]} Nc6 {[%emt 0:01:10]} 23. Nxc6 {[%emt 0:00:15] White is more active.} (23. Rxc6 {seems wilder.} Rxc6 24. Nxc6 bxc6 25. Rb1) 23... Rxc6 {[%emt 0:00:24]} 24. Rxc6 {[%emt 0:00:34]} Qxc6 {[%emt 0:05:36]} 25. Qxa5 $14 {[%emt 0:00:24][%mdl 4096] Endgame KQR-KQR} Rd3 {[%emt 0:00:11]} 26. b4 $1 {[%emt 0:06:00]} b5 {[%emt 0:04:00]} 27. Ra1 {[%emt 0:00:42]} (27. Qa7 $16) 27... Kh7 {[%emt 0:02:36]} (27... Rd2 $11) 28. Kg2 {[%emt 0:01:58]} (28. a4 $16) 28... Qf6 $11 {[%emt 0:00:25]} 29. Rf1 {[%emt 0:01:02]} Qc6 {[%emt 0:00:53]} 30. h4 {[%emt 0:00:56]} h5 {[%emt 0:00:15]} (30... Qd7 $11) 31. a4 $1 $16 {[%emt 0:03:18]} Rd5 {[%emt 0:00:58] [#]} (31... bxa4 $142 32. Qxh5+ (32. Ra1 Qg6 $16) 32... Kg8) 32. axb5 {[%emt 0:00:19]} ({White should play} 32. Qa7 $1) 32... Rxb5 {[%emt 0:00:05] [#]} (32... Qf6 $16) 33. Rc1 $3 $18 {[%emt 0:01:22][%mdl 512]} Qd5 {[%emt 0:00:30]} (33... Qd7 34. Qa4) 34. Qc7 {[%emt 0:00:35] Threatens to win with Rc5.} Qf5 {[%emt 0:00:24] [#]} 35. Qc4 $2 {[%emt 0:01:50]} ({Only move:} 35. Qd6 $1 $18) 35... Kg6 {[%emt 0:01:01]} (35... g5 $11) 36. Kg1 {[%emt 0:00:16]} Kh7 {[%emt 0:00:07]} 37. Rd1 {[%emt 0:00:25]} Re5 {[%emt 0:01:04]} (37... Rb8 {keeps fighting.} 38. Qb3 Rb6) 38. Rd8 {[%emt 0:00:43]} Rb5 {[%emt 0:00:27]} 39. Re8 {[%emt 0:00:00]} Re5 $2 {[%emt 0:00:00]} (39... Rd5 40. Rxe4 (40. Qxe4 Qxe4 41. Rxe4 Rd1+ 42. Kg2 Rb1 $18) 40... Rd1+ 41. Kg2 Rc1) 40. Rxe5 {[%emt 0:00:00] White is clearly winning.} Qxe5 {[%emt 0:00:00]} 41. Qxf7 {[%emt 0:01:13] Qd7 is the strong threat.} Qb5 {[%emt 0:00:38] Against Qd7} 42. Qe7 {[%emt 0:00:41] And now Qc5 would win.} Qd3 {[%emt 0:00:05]} 43. Kg2 {[%emt 0:00:43] Weighted Error Value: White=0.17 (very precise) /Black=0.36} 1-0